{"text_format":"1","workbook":"xlsx","n_sheets":14,"sheets":["Indtastning","Samlet BVC","Risikoprofil","Belastende ugedage","Triggere","Cannabis","Amfetamin","Kokain","X1","X2","Samlet Misbrug","PopUp variabler","Manualer","CC"],"not_rendered":{"charts":25,"images":23,"macros":1,"external_links":0,"defined_names":10,"comments":0,"pivot_tables":10},"unopened":[],"bounds":{"document_bytes":16777216,"sheet_cells":100000,"rows_first":2000,"rows_last":500,"rows_between":2000,"halvings":0,"cell_chars":16384,"cell_head_chars":4096},"cells_cut":0,"cells_raw":0,"read":"whole","date_system":"1900"}

{"sheet":"Indtastning","index":0,"n_rows":64,"n_cols":1953,"rows_kept":64,"cut":false,"hidden":false,"merged":[[1,0,1,2],[3,46,3,51],[3,52,3,57],[3,11,3,15],[3,3,3,10],[3,16,3,36],[3,40,3,45],[1,3,1,6]]}
[]
["Patient: ",null,null,"Peter test Petersen i perioden fra d. 01-03-2021 til 28-04-2021",null,null,null,null,"OS Risiko Manager",null,null,null,null,null,null,null,null,null,null,null,null,null,null,null,null,null,null,null,null,null,null,null,null,null,null,null,null,null,null,null,null,null,null,null,null,null,null,null,null,null,null,null,null,null,null,null,null,null,null,null,null,null,null,null,null,null,null,null,null,null,null,null,null,null,null,null,null,null,null,null,null,null,null,null,null,null,null,null,null,null,null,null,null,null,null,null,null,null,null,null,null,null,null,null,null,null,null,null,null,null,null,null,null,null,null,null,null,null,null,null,null,null,null,null,null,null,null,null,null,null,null,null,null,null,null,null,null,null,null,null,null,null,null,null,null,null,null,null,null,null,null,null,null,null,null,null,null,null,null,null,null,null,null,null,null,null,null,null,null,null,null,null,null,null,null,null,null,null,null,null,null,null,null,null,null,null,null,null,null,null,null,null,null,null,null,null,null,null,null,null,null,null,null,null,null,null,null,null,null,null,null,null,null,null,null,null,null,null,null,null,null,null,null,null,null,null,null,null,null,null,null,null,null,null,null,null,null,null,null,null,null,null,null,null,null,null,null,null,null,null,null,null,null,null,null,null,null,null,null,null,null,null,null,null,null,null,null,null,null,null,null,null,null,null,null,null,null,null,null,null,null,null,null,null,null,null,null,null,null,null,null,null,null,null,null,null,null,null,null,null,null,null,null,null,null,null,null,null,null,null,null,null,null,null,null,null,null,null,null,null,null,null,null,null,null,null,null,null,null,null,null,null,null,null,null,null,null,null,null,null,null,null,null,null,null,null,null,null,null,null,null,null,null,null,null,null,null,null,null,null,null,null,null,null,null,null,null,null,null,null,null,null,null,null,null,null,null,null,null,null,null,null,null,null,null,null,null,null,null,null,null,null,null,null,null,null,null,null,null,null,null,null,null,null,null,null,null,null,null,null,null,null,null,null,null,null,null,null,null,null,null,null,null,null,null,null,null,null,null,null,null,null,null,null,null,null,null,null,null,null,null,null,null,null,null,null,null,null,null,null,null,null,null,null,null,null,null,null,null,null,null,null,null,null,null,null,null,null,null,null,null,null,null,null,null,null,null,null,null,null,null,null,null,null,null,null,null,null,null,null,null,null,null,null,null,null,null,null,null,null,null,null,null,null,null,null,null,null,null,null,null,null,null,null,null,null,null,null,null,null,null,null,null,null,null,null,null,null,null,null,null,null,null,null,null,null,null,null,null,null,null,null,null,null,null,null,null,null,null,null,null,null,null,null,null,null,null,null,null,null,null,null,null,null,null,null,null,null,null,null,null,null,null,null,null,null,null,null,null,null,null,null,null,null,null,null,null,null,null,null,null,null,null,null,null,null,null,null,null,null,null,null,null,null,null,null,null,null,null,null,null,null,null,null,null,null,null,null,null,null,null,null,null,null,null,null,null,null,null,null,null,null,null,null,null,null,null,null,null,null,null,null,null,null,null,null,null,null,null,null,null,null,null,null,null,null,null,null,null,null,null,null,null,null,null,null,null,null,null,null,null,null,null,null,null,null,null,null,null,null,null,null,null,null,null,null,null,null,null,null,null,null,null,null,null,null,null,null,null,null,null,null,null,null,null,null,null,null,null,null,null,null,null,null,null,null,null,null,null,null,null,null,null,null,null,null,null,null,null,null,null,null,null,null,null,null,null,null,null,null,null,null,null,null,null,null,null,null,null,null,null,null,null,null,null,null,null,null,null,null,null,null,null,null,null,null,null,null,null,null,null,null,null,null,null,null,null,null,null,null,null,null,null,null,null,null,null,null,null,null,null,null,null,null,null,null,null,null,null,null,null,null,null,null,null,null,null,null,null,null,null,null,null,null,null,null,null,null,null,null,null,null,null,null,null,null,null,null,null,null,null,null,null,null,null,null,null,null,null,null,null,null,null,null,null,null,null,null,null,null,null,null,null,null,null,null,null,null,null,null,null,null,null,null,null,null,null,null,null,null,null,null,null,null,null,null,null,null,null,null,null,null,null,null,null,null,null,null,null,null,null,null,null,null,null,null,null,null,null,null,null,null,null,null,null,null,null,null,null,null,null,null,null,null,null,null,null,null,null,null,null,null,null,null,null,null,null,null,null,null,null,null,null,null,null,null,null,null,null,null,null,null,null,null,null,null,null,null,null,null,null,null,null,null,null,null,null,null,null,null,null,null,null,null,null,null,null,null,null,null,null,null,null,null,null,null,null,null,null,null,null,null,null,null,null,null,null,null,null,null,null,null,null,null,null,null,null,null,null,null,null,null,null,null,null,null,null,null,null,null,null,null,null,null,null,null,null,null,null,null,null,null,null,null,null,null,null,null,null,null,null,null,null,null,null,null,null,null,null,null,null,null,null,null,null,null,null,null,null,null,null,null,null,null,null,null,null,null,null,null,null,null,null,null,null,null,null,null,null,null,null,null,null,null,null,null,null,null,null,null,null,null,null,null,null,null,null,null,null,null,null,null,null,null,null,null,null,null,null,null,null,null,null,null,null,null,null,null,null,null,null,null,null,null,null,null,null,null,null,null,null,null,null,null,null,null,null,null,null,null,null,null,null,null,null,null,null,null,null,null,null,null,null,null,null,null,null,null,null,null,null,null,null,null,null,null,null,null,null,null,null,null,null,null,null,null,null,null,null,null,null,null,null,null,null,null,null,null,null,null,null,null,null,null,null,null,null,null,null,null,null,null,null,null,null,null,null,null,null,null,null,null,null,null,null,null,null,null,null,null,null,null,null,null,null,null,null,null,null,null,null,null,null,null,null,null,null,null,null,null,null,null,null,null,null,null,null,null,null,null,null,null,null,null,null,null,null,null,null,null,null,null,null,null,null,null,null,null,null,null,null,null,null,null,null,null,null,null,null,null,null,null,null,null,null,null,null,null,null,null,null,null,null,null,null,null,null,null,null,null,null,null,null,null,null,null,null,null,null,null,null,null,null,null,null,null,null,null,null,null,null,null,null,null,null,null,null,null,null,null,null,null,null,null,null,null,null,null,null,null,null,null,null,null,null,null,null,null,null,null,null,null,null,null,null,null,null,null,null,null,null,null,null,null,null,null,null,null,null,null,null,null,null,null,null,null,null,null,null,null,null,null,null,null,null,null,null,null,null,null,null,null,null,null,null,null,null,null,null,null,null,null,null,null,null,null,null,null,null,null,null,null,null,null,null,null,null,null,null,null,null,null,null,null,null,null,null,null,null,null,null,null,null,null,null,null,null,null,null,null,null,null,null,null,null,null,null,null,null,null,null,null,null,null,null,null,null,null,null,null,null,null,null,null,null,null,null,null,null,null,null,null,null,null,null,null,null,null,null,null,null,null,null,null,null,null,null,null,null,null,null,null,null,null,null,null,null,null,null,null,null,null,null,null,null,null,null,null,null,null,null,null,null,null,null,null,null,null,null,null,null,null,null,null,null,null,null,null,null,null,null,null,null,null,null,null,null,null,null,null,null,null,null,null,null,null,null,null,null,null,null,null,null,null,null,null,null,null,null,null,null,null,null,null,null,null,null,null,null,null,null,null,null,null,null,null,null,null,null,null,null,null,null,null,null,null,null,null,null,null,null,null,null,null,null,null,null,null,null,null,null,null,null,null,null,null,null,null,null,null,null,null,null,null,null,null,null,null,null,null,null,null,null,null,null,null,null,null,null,null,null,null,null,null,null,null,null,null,null,null,null,null,null,null,null,null,null,null,null,null,null,null,null,null,null,null,null,null,null,null,null,null,null,null,null,null,null,null,null,null,null,null,null,null,null,null,null,null,null,null,null,null,null,null,null,null,null,null,null,null,null,null,null,null,null,null,null,null,null,null,null,null,null,null,null,null,null,null,null,null,null,null,null,null,null,null,null,null,null,null,null,null,null,null,null,null,null,null,null,null,null,null,null,null,null,null,null,null,null,null,null,null,null,null,null,null,null,null,null,null,null,null,null,null,null,null,null,null,null,null,null,null,null,null,null,null,null,null,null,null,null,null,null,null,null,null,null,null,null,null,null,null,null,null,null,null,null,null,null,null,null,null,null,null,null,null,null,null,null,null,null,null,null,null,null,null,null,null,null,null,null,null,null,null,null,null,null,null,null,null,null,null,null,null,null,null,null,null,null,null,null,null,null,null,null,null,null,null,null,null,null,null,null,null,null,null,null,null,null,null,null,null,null,null,null,null,null,null,null,null,null,null,null,null,null,null,null,null,null,null,null,null,null,null,null,null,null,null,null,null,null,null,null,null,null,null,null,null,null,null,null,null,null,null,null,null,null,null,null,null,null,null,null,null,null,null,null,null,null,null,null,null,null,null,null,null,null,null,null,null,null,null,null,null,null,null,null,null,null,null,null,null,null,null,null,null,null,null,null,null,null,null,null,null,null,null,null,null,null,null,null,null,null,null,null,null,null,null,null,null,null,null,"#I/T"]
[null,null,null,null,null,null,null,null,null,null,null,null,null,null,null,null,null,null,null,null,null,null,null,null,null,null,null,null,"Cannabis Pos Neg",null,null,null,"Benzodiazepin",null,null,null,null,null,null,null,"Den videre del af fanebladet er forbundet med databehandling"]
[null,"Dag for prøve",null,"BVC Score",null,null,null,null,null,null,null,"SOAS-R",null,null,null,null,"Urinprøvesvar",null,null,null,null,null,null,null,null,null,null,null,null,null,null,null,null,null,null,null,null,null,null,null,"BVC Dag",null,null,null,null,null,"BVC Aften",null,null,null,null,null,"BVC Nat"]
["Dato","Uge","ugedag","BVC dag","Dagvagt","BVC aften","Aftenvagt","BVC nat","Nattevagt","BVC Højeste","BVC Sum","SOAS dag","SOAS aften","SOAS nat","SOAS Sum","SOAS Højeste","Cannabis","CanPos","CanNeg","CanIkke","Amfetamin","AmfPos","AmfNeg","AmfIkke","Kokain","KokPos","KokNeg","KokIkke","X1","X1Pos","X1Neg","X1Ikke","X2","X2Pos","X2Neg","X2Ikke","Manualer","ManPos","ManNeg","ManIkke","BvcDagFor","BvcDagIrr","BvcDagStoj","BvcDagFys","BvcDagVer","BvcDagAng","BvcAftFor","BvcAftIrr","BvcAftStoj","BvcAftFys","BvcAftVer","BvcAftAng","BvcNatFor","BvcNatIrr","BvcNatStoj","BvcNatFys","BvcNatVer","BvcNatAng"]
["2021-03-01",{"$f":"WEEKNUM(A6,21)","v":9},{"$f":"PROPER(TEXT(A6, \"DDDD\"))","v":"Mandag"},null,null,null,null,null,null,{"$f":"MAX(D6,F6,H6)","v":0},{"$f":"SUM(D6,F6,H6)","v":0},null,null,null,{"$f":"SUM(L6:N6)","v":0},{"$f":"MAX(L6,M6,N6)","v":0},null,{"$error":"#N/A"},{"$f":"IF(Q6=\"Negativ\",1.2,-2)","v":-2},{"$f":"IF(Q6=\"Ikke Aflagt\",2.8,-2)","v":-2},null,{"$f":"IF(U6=\"Positiv\",1,-2)","v":-2},{"$f":"IF(U6=\"Negativ\",-1,-2)","v":-2},{"$f":"IF(U6=\"Ikke Aflagt\",0,-2)","v":-2},null,{"$f":"IF(Y6=\"Positiv\",1,-2)","v":-2},{"$f":"IF(Y6=\"Negativ\",-1,-2)","v":-2},{"$f":"IF(Y6=\"Ikke Aflagt\",0,-2)","v":-2},null,{"$f":"IF(AC6=\"Positiv\",1,-2)","v":-2},{"$f":"IF(AC6=\"Negativ\",-1,-2)","v":-2},{"$f":"IF(AC6=\"Ikke Aflagt\",0,-2)","v":-2},null,{"$f":"IF(AG6=\"Positiv\",1,-2)","v":-2},{"$f":"IF(AG6=\"Negativ\",-1,-2)","v":-2},{"$f":"IF(AG6=\"Ikke Aflagt\",0,-2)","v":-2},null,{"$f":"IF(AK6=\"Positiv\",1,-2)","v":-2},{"$f":"IF(AK6=\"Negativ\",-1,-2)","v":-2},{"$f":"IF(AK6=\"Ikke Aflagt\",0,-2)","v":-2}]
["2021-03-02",{"$f":"WEEKNUM(A7,21)","v":9},{"$f":"PROPER(TEXT(A7, \"DDDD\"))","v":"Tirsdag"},4,"Psykotisk",1,"Psykotisk",null,null,{"$f":"MAX(D7,F7,H7)","v":4},{"$f":"SUM(D7,F7,H7)","v":5},3,null,null,{"$f":"SUM(L7:N7)","v":3},{"$f":"MAX(L7,M7,N7)","v":3},"Ikke Aflagt",{"$error":"#N/A"},{"$f":"IF(Q7=\"Negativ\",1.2,-2)","v":-2},{"$f":"IF(Q7=\"Ikke Aflagt\",2.8,-2)","v":2.8},"Ikke Aflagt",{"$f":"IF(U7=\"Positiv\",1,-2)","v":-2},{"$f":"IF(U7=\"Negativ\",-1,-2)","v":-2},{"$f":"IF(U7=\"Ikke Aflagt\",0,-2)","v":0},"Ikke Aflagt",{"$f":"IF(Y7=\"Positiv\",1,-2)","v":-2},{"$f":"IF(Y7=\"Negativ\",-1,-2)","v":-2},{"$f":"IF(Y7=\"Ikke Aflagt\",0,-2)","v":0},"Ikke Aflagt",{"$f":"IF(AC7=\"Positiv\",1,-2)","v":-2},{"$f":"IF(AC7=\"Negativ\",-1,-2)","v":-2},{"$f":"IF(AC7=\"Ikke Aflagt\",0,-2)","v":0},"Ikke Aflagt",{"$f":"IF(AG7=\"Positiv\",1,-2)","v":-2},{"$f":"IF(AG7=\"Negativ\",-1,-2)","v":-2},{"$f":"IF(AG7=\"Ikke Aflagt\",0,-2)","v":0},"Ikke Aflagt",{"$f":"IF(AK7=\"Positiv\",1,-2)","v":-2},{"$f":"IF(AK7=\"Negativ\",-1,-2)","v":-2},{"$f":"IF(AK7=\"Ikke Aflagt\",0,-2)","v":0},1,0,1,1,1,0,1,0,0,0,0,0]
["2021-03-03",9,"Onsdag",3,"Psykotisk",null,null,null,null,3,3,null,null,null,0,0,null,{"$error":"#N/A"},-2,-2,null,-2,-2,-2,null,-2,-2,-2,null,-2,-2,-2,null,-2,-2,-2,null,-2,-2,-2,1,1,1,0,0,0]
["2021-03-04",9,"Torsdag",null,null,null,null,null,null,0,0,null,null,null,0,0,null,{"$error":"#N/A"},-2,-2,null,-2,-2,-2,null,-2,-2,-2,null,-2,-2,-2,null,-2,-2,-2,null,-2,-2,-2]
["2021-03-05",9,"Fredag",null,null,2,"Medpatient",null,null,2,2,null,null,null,0,0,null,{"$error":"#N/A"},-2,-2,null,-2,-2,-2,null,-2,-2,-2,null,-2,-2,-2,null,-2,-2,-2,null,-2,-2,-2,null,null,null,null,null,null,1,1,0,0,0,0]
["2021-03-06",9,"Lørdag",null,null,null,null,null,null,0,0,null,null,null,0,0,null,{"$error":"#N/A"},-2,-2,null,-2,-2,-2,null,-2,-2,-2,null,-2,-2,-2,null,-2,-2,-2,null,-2,-2,-2]
["2021-03-07",9,"Søndag",null,null,null,null,null,null,0,0,null,null,null,0,0,null,{"$error":"#N/A"},-2,-2,null,-2,-2,-2,null,-2,-2,-2,null,-2,-2,-2,null,-2,-2,-2,null,-2,-2,-2]
["2021-03-08",10,"Mandag",null,null,2,"Rammerne",null,null,2,2,null,null,null,0,0,null,{"$error":"#N/A"},-2,-2,null,-2,-2,-2,null,-2,-2,-2,null,-2,-2,-2,null,-2,-2,-2,null,-2,-2,-2,null,null,null,null,null,null,1,1,0,0,0,0]
["2021-03-09",10,"Tirsdag",null,null,null,null,null,null,0,0,null,null,null,0,0,"Positiv",14,-2,-2,"Positiv",1,-2,-2,"Negativ",-2,-1,-2,null,-2,-2,-2,"Positiv",1,-2,-2,null,-2,-2,-2]
["2021-03-10",10,"Onsdag",null,null,null,null,null,null,0,0,null,null,null,0,0,null,{"$error":"#N/A"},-2,-2,null,-2,-2,-2,null,-2,-2,-2,null,-2,-2,-2,null,-2,-2,-2,null,-2,-2,-2]
["2021-03-11",10,"Torsdag",null,null,null,null,null,null,0,0,null,null,null,0,0,null,{"$error":"#N/A"},-2,-2,null,-2,-2,-2,null,-2,-2,-2,null,-2,-2,-2,null,-2,-2,-2,null,-2,-2,-2]
["2021-03-12",10,"Fredag",2,"Psykotisk",null,null,null,null,2,2,null,null,null,0,0,null,{"$error":"#N/A"},-2,-2,null,-2,-2,-2,null,-2,-2,-2,null,-2,-2,-2,null,-2,-2,-2,null,-2,-2,-2,1,0,1,0,0,0]
["2021-03-13",10,"Lørdag",null,null,null,null,null,null,0,0,null,null,null,0,0,null,{"$error":"#N/A"},-2,-2,null,-2,-2,-2,null,-2,-2,-2,null,-2,-2,-2,null,-2,-2,-2,null,-2,-2,-2,null,null,null,null,null,null,null,null,null,null,null,null,null,null,null,null,null,null,null,null,null,null,null,null,null,null,null,null,null,null,null,null,null,null,null,null,null,null,null,null,null,null,null,null,null,null,null,null,null,null,null,null,null,null,null,null,null,null,null,null,null,null,null,null,null,null,null,null,null,null,null,null,null,null,null,null,null,null,null,null,null,null,null,null,null,null,null,null,null,null,null,null,null,null,null,null,null,null,null,null,null,null,null,null,null,null,null,null,null,null,null,null,null,null,null,null,null,null,null,null,null,null,null,null,null,null,null,null,null,null,null,null,null,null,null,null,null,null,null,null,null,null,null,null,null,null,null,null,null,null,null,null,null,null,null,null,null,null,null,null,null,null,null,null,null,null,null,null,null,null,null,null,null,null,null,null,null,null,null,null,null,null,null,null,null,null,null,null,null,null,null,null,null,null,null,null,null,null,null,null,null,null,null,null,null,null,null,null,null,null,null,null,null,null,null,null,null,null,null,null,null,null,null,null,null,null,null,null,null,null,null,null,null,null,null,null,null,null,null,null,null,null,null,null,null,null,null,null,null,null,null,null,null,null,null,null,null,null,null,null,null,null,null,null,null,null,null,null,null,null,null,null,null,null,null,null,null,null,null,null,null,null,null,null,null,null,null,null,null,null,null,null,null,null,null,null,"#I/T"]
["2021-03-14",10,"Søndag",null,null,null,null,null,null,0,0,null,null,null,0,0,null,{"$error":"#N/A"},-2,-2,null,-2,-2,-2,null,-2,-2,-2,null,-2,-2,-2,null,-2,-2,-2,null,-2,-2,-2]
["2021-03-15",11,"Mandag",null,null,null,null,null,null,0,0,null,null,null,0,0,null,{"$error":"#N/A"},-2,-2,null,-2,-2,-2,null,-2,-2,-2,null,-2,-2,-2,null,-2,-2,-2,null,-2,-2,-2]
["2021-03-16",11,"Tirsdag",null,null,null,null,null,null,0,0,null,null,null,0,0,"Positiv",9,-2,-2,"Negativ",-2,-1,-2,"Positiv",1,-2,-2,null,-2,-2,-2,"Positiv",1,-2,-2,null,-2,-2,-2]
["2021-03-17",11,"Onsdag",null,null,null,null,1,"Rammerne",1,1,null,null,null,0,0,null,{"$error":"#N/A"},-2,-2,null,-2,-2,-2,null,-2,-2,-2,null,-2,-2,-2,null,-2,-2,-2,null,-2,-2,-2,null,null,null,null,null,null,null,null,null,null,null,null,1,0,0,0,0,0]
["2021-03-18",11,"Torsdag",null,null,null,null,null,null,0,0,null,null,null,0,0,null,{"$error":"#N/A"},-2,-2,null,-2,-2,-2,null,-2,-2,-2,null,-2,-2,-2,null,-2,-2,-2,null,-2,-2,-2]
["2021-03-19",11,"Fredag",3,"Medicin ",null,null,null,null,3,3,1,null,null,1,1,null,{"$error":"#N/A"},-2,-2,null,-2,-2,-2,null,-2,-2,-2,null,-2,-2,-2,null,-2,-2,-2,null,-2,-2,-2,1,1,0,1,0,0]
["2021-03-20",11,"Lørdag",3,"Psykotisk",null,null,null,null,3,3,1,null,null,1,1,null,{"$error":"#N/A"},-2,-2,null,-2,-2,-2,null,-2,-2,-2,null,-2,-2,-2,null,-2,-2,-2,null,-2,-2,-2,1,1,0,1,0,0]
["2021-03-21",11,"Søndag",null,null,null,null,null,null,0,0,null,null,null,0,0,null,{"$error":"#N/A"},-2,-2,null,-2,-2,-2,null,-2,-2,-2,null,-2,-2,-2,null,-2,-2,-2,null,-2,-2,-2]
["2021-03-22",12,"Mandag",null,null,null,null,null,null,0,0,null,null,null,0,0,null,{"$error":"#N/A"},-2,-2,null,-2,-2,-2,null,-2,-2,-2,null,-2,-2,-2,null,-2,-2,-2,null,-2,-2,-2]
["2021-03-23",12,"Tirsdag",null,null,1,"Rammerne",null,null,1,1,null,null,null,0,0,"Negativ",0,1.2,-2,"Positiv",1,-2,-2,"Positiv",1,-2,-2,null,-2,-2,-2,"Negativ",-2,-1,-2,null,-2,-2,-2,null,null,null,null,null,null,0,1,0,0,0,0]
["2021-03-24",12,"Onsdag",null,null,null,null,null,null,0,0,null,null,null,0,0,null,{"$error":"#N/A"},-2,-2,null,-2,-2,-2,null,-2,-2,-2,null,-2,-2,-2,null,-2,-2,-2,null,-2,-2,-2]
["2021-03-25",12,"Torsdag",null,null,null,null,null,null,0,0,null,null,null,0,0,null,{"$error":"#N/A"},-2,-2,null,-2,-2,-2,null,-2,-2,-2,null,-2,-2,-2,null,-2,-2,-2,null,-2,-2,-2]
["2021-03-26",12,"Fredag",null,null,null,null,1,"Personaleudløst",1,1,null,null,null,0,0,null,{"$error":"#N/A"},-2,-2,null,-2,-2,-2,null,-2,-2,-2,null,-2,-2,-2,null,-2,-2,-2,null,-2,-2,-2,null,null,null,null,null,null,null,null,null,null,null,null,0,1,0,0,0,0]
["2021-03-27",12,"Lørdag",null,null,null,null,null,null,0,0,null,null,null,0,0,null,{"$error":"#N/A"},-2,-2,null,-2,-2,-2,null,-2,-2,-2,null,-2,-2,-2,null,-2,-2,-2,null,-2,-2,-2]
["2021-03-28",12,"Søndag",null,null,null,null,null,null,0,0,null,null,null,0,0,null,{"$error":"#N/A"},-2,-2,null,-2,-2,-2,null,-2,-2,-2,null,-2,-2,-2,null,-2,-2,-2,null,-2,-2,-2]
["2021-03-29",13,"Mandag",1,"Korrigering af adfærd",2,"Medicin ",null,null,2,3,null,1,null,1,1,null,{"$error":"#N/A"},-2,-2,null,-2,-2,-2,null,-2,-2,-2,null,-2,-2,-2,null,-2,-2,-2,null,-2,-2,-2,0,1,0,0,0,0,0,1,0,1,0,0]
["2021-03-30",13,"Tirsdag",null,null,null,null,null,null,0,0,null,null,null,0,0,"Ikke Aflagt",{"$error":"#N/A"},-2,2.8,"Ikke Aflagt",-2,-2,0,"Ikke Aflagt",-2,-2,0,"Ikke Aflagt",-2,-2,0,"Ikke Aflagt",-2,-2,0,"Ikke Aflagt",-2,-2,0]
["2021-03-31",13,"Onsdag",null,null,null,null,null,null,0,0,null,null,null,0,0,null,{"$error":"#N/A"},-2,-2,null,-2,-2,-2,null,-2,-2,-2,null,-2,-2,-2,null,-2,-2,-2,null,-2,-2,-2]
["2021-04-01",13,"Torsdag",null,null,null,null,null,null,0,0,null,null,null,0,0,null,{"$error":"#N/A"},-2,-2,null,-2,-2,-2,null,-2,-2,-2,null,-2,-2,-2,null,-2,-2,-2,null,-2,-2,-2]
["2021-04-02",13,"Fredag",null,null,null,null,null,null,0,0,null,null,null,0,0,null,{"$error":"#N/A"},-2,-2,null,-2,-2,-2,null,-2,-2,-2,null,-2,-2,-2,null,-2,-2,-2,null,-2,-2,-2]
["2021-04-03",13,"Lørdag",3,"Rammerne",null,null,null,null,3,3,3,null,null,3,3,null,{"$error":"#N/A"},-2,-2,null,-2,-2,-2,null,-2,-2,-2,null,-2,-2,-2,null,-2,-2,-2,null,-2,-2,-2,1,1,0,1,0,0]
["2021-04-04",13,"Søndag",2,"Psykotisk",null,null,null,null,2,2,null,null,null,0,0,null,{"$error":"#N/A"},-2,-2,null,-2,-2,-2,null,-2,-2,-2,null,-2,-2,-2,null,-2,-2,-2,null,-2,-2,-2,1,1,0,0,0,0]
["2021-04-05",14,"Mandag",null,null,null,null,null,null,0,0,null,null,null,0,0,null,{"$error":"#N/A"},-2,-2,null,-2,-2,-2,null,-2,-2,-2,null,-2,-2,-2,null,-2,-2,-2,null,-2,-2,-2]
["2021-04-06",14,"Tirsdag",null,null,null,null,null,null,0,0,null,null,null,0,0,"Negativ",0,1.2,-2,"Negativ",-2,-1,-2,"Positiv",1,-2,-2,null,-2,-2,-2,"Negativ",-2,-1,-2,null,-2,-2,-2]
["2021-04-07",14,"Onsdag",null,null,null,null,null,null,0,0,null,null,null,0,0,null,{"$error":"#N/A"},-2,-2,null,-2,-2,-2,null,-2,-2,-2,null,-2,-2,-2,null,-2,-2,-2,null,-2,-2,-2]
["2021-04-08",14,"Torsdag",null,null,null,null,null,null,0,0,null,null,null,0,0,null,{"$error":"#N/A"},-2,-2,null,-2,-2,-2,null,-2,-2,-2,null,-2,-2,-2,null,-2,-2,-2,null,-2,-2,-2]
["2021-04-09",14,"Fredag",null,null,null,null,null,null,0,0,null,null,null,0,0,null,{"$error":"#N/A"},-2,-2,null,-2,-2,-2,null,-2,-2,-2,null,-2,-2,-2,null,-2,-2,-2,null,-2,-2,-2]
["2021-04-10",14,"Lørdag",null,null,null,null,null,null,0,0,null,null,null,0,0,null,{"$error":"#N/A"},-2,-2,null,-2,-2,-2,null,-2,-2,-2,null,-2,-2,-2,null,-2,-2,-2,null,-2,-2,-2]
["2021-04-11",14,"Søndag",null,null,null,null,null,null,0,0,null,null,null,0,0,null,{"$error":"#N/A"},-2,-2,null,-2,-2,-2,null,-2,-2,-2,null,-2,-2,-2,null,-2,-2,-2,null,-2,-2,-2]
["2021-04-12",15,"Mandag",null,null,null,null,null,null,0,0,null,null,null,0,0,null,{"$error":"#N/A"},-2,-2,null,-2,-2,-2,null,-2,-2,-2,null,-2,-2,-2,null,-2,-2,-2,null,-2,-2,-2]
["2021-04-13",15,"Tirsdag",null,null,null,null,null,null,0,0,null,null,null,0,0,"Positiv",6,-2,-2,"Negativ",-2,-1,-2,"Negativ",-2,-1,-2,null,-2,-2,-2,"Positiv",1,-2,-2,null,-2,-2,-2]
["2021-04-14",15,"Onsdag",null,null,null,null,null,null,0,0,null,null,null,0,0,null,{"$error":"#N/A"},-2,-2,null,-2,-2,-2,null,-2,-2,-2,null,-2,-2,-2,null,-2,-2,-2,null,-2,-2,-2]
["2021-04-15",15,"Torsdag",null,null,null,null,null,null,0,0,null,null,null,0,0,null,{"$error":"#N/A"},-2,-2,null,-2,-2,-2,null,-2,-2,-2,null,-2,-2,-2,null,-2,-2,-2,null,-2,-2,-2]
["2021-04-16",15,"Fredag",null,null,1,"Korrigering af adfærd",null,null,1,1,null,null,null,0,0,null,{"$error":"#N/A"},-2,-2,null,-2,-2,-2,null,-2,-2,-2,null,-2,-2,-2,null,-2,-2,-2,null,-2,-2,-2,null,null,null,null,null,null,0,1,0,0,0,0]
["2021-04-17",15,"Lørdag",null,null,null,null,null,null,0,0,null,null,null,0,0,null,{"$error":"#N/A"},-2,-2,null,-2,-2,-2,null,-2,-2,-2,null,-2,-2,-2,null,-2,-2,-2,null,-2,-2,-2]
["2021-04-18",15,"Søndag",null,null,null,null,null,null,0,0,null,null,null,0,0,null,{"$error":"#N/A"},-2,-2,null,-2,-2,-2,null,-2,-2,-2,null,-2,-2,-2,null,-2,-2,-2,null,-2,-2,-2]
["2021-04-19",16,"Mandag",null,null,null,null,null,null,0,0,null,null,null,0,0,null,{"$error":"#N/A"},-2,-2,null,-2,-2,-2,null,-2,-2,-2,null,-2,-2,-2,null,-2,-2,-2,null,-2,-2,-2]
["2021-04-20",16,"Tirsdag",null,null,null,null,null,null,0,0,null,null,null,0,0,"Negativ",0,1.2,-2,"Positiv",1,-2,-2,"Negativ",-2,-1,-2,null,-2,-2,-2,"Negativ",-2,-1,-2,null,-2,-2,-2]
["2021-04-21",16,"Onsdag",null,null,null,null,null,null,0,0,null,null,null,0,0,null,{"$error":"#N/A"},-2,-2,null,-2,-2,-2,null,-2,-2,-2,null,-2,-2,-2,null,-2,-2,-2,null,-2,-2,-2]
["2021-04-22",16,"Torsdag",null,null,null,null,null,null,0,0,null,null,null,0,0,null,{"$error":"#N/A"},-2,-2,null,-2,-2,-2,null,-2,-2,-2,null,-2,-2,-2,null,-2,-2,-2,null,-2,-2,-2]
["2021-04-23",16,"Fredag",null,null,null,null,null,null,0,0,null,null,null,0,0,null,{"$error":"#N/A"},-2,-2,null,-2,-2,-2,null,-2,-2,-2,null,-2,-2,-2,null,-2,-2,-2,null,-2,-2,-2]
["2021-04-24",16,"Lørdag",1,"Psykotisk",3,"Medicin ",null,null,3,4,null,1,null,1,1,null,{"$error":"#N/A"},-2,-2,null,-2,-2,-2,null,-2,-2,-2,null,-2,-2,-2,null,-2,-2,-2,null,-2,-2,-2,0,1,0,0,0,0,0,1,0,1,0,1]
["2021-04-25",16,"Søndag",null,null,null,null,null,null,0,0,null,null,null,0,0,null,{"$error":"#N/A"},-2,-2,null,-2,-2,-2,null,-2,-2,-2,null,-2,-2,-2,null,-2,-2,-2,null,-2,-2,-2]
["2021-04-26",17,"Mandag",null,null,null,null,null,null,0,0,null,null,null,0,0,null,{"$error":"#N/A"},-2,-2,null,-2,-2,-2,null,-2,-2,-2,null,-2,-2,-2,null,-2,-2,-2,null,-2,-2,-2]
["2021-04-27",17,"Tirsdag",null,null,null,null,null,null,0,0,null,null,null,0,0,"Positiv",4,-2,-2,"Negativ",-2,-1,-2,"Negativ",-2,-1,-2,null,-2,-2,-2,"Positiv",1,-2,-2,null,-2,-2,-2]
["2021-04-28",17,"Onsdag",3,"Medpatient",null,null,null,null,3,3,null,null,null,0,0,null,{"$error":"#N/A"},-2,-2,null,-2,-2,-2,null,-2,-2,-2,null,-2,-2,-2,null,-2,-2,-2,null,-2,-2,-2,1,1,1,0,0,0]

{"sheet":"Samlet BVC","index":1,"n_rows":10,"n_cols":4,"rows_kept":10,"cut":false,"hidden":false,"merged":[[2,1,2,3]]}
[]
[]
[null,"BVC Scoren fordeler sig således"]
[]
[null,"Forvirret",null,{"$f":"SUM(Indtastning!AO6:AO64)+SUM(Indtastning!AU6:AU64)+SUM(Indtastning!BA6:BA64)","v":12}]
[null,"Irritabilitet",null,{"$f":"SUM(Indtastning!AP6:AP64)+SUM(Indtastning!AV6:AV64)+SUM(Indtastning!BB6:BB64)","v":15}]
[null,"Støjende adfærd",null,{"$f":"SUM(Indtastning!AQ6:AQ64)+SUM(Indtastning!AW6:AW64)+SUM(Indtastning!BC6:BC64)","v":4}]
[null,"Verbale trusler",null,{"$f":"SUM(Indtastning!AR6:AR64)+SUM(Indtastning!AX6:AX64)+SUM(Indtastning!BD6:BD64)","v":6}]
[null,"Fysiske trusler",null,{"$f":"SUM(Indtastning!AS6:AS64)+SUM(Indtastning!AY6:AY64)+SUM(Indtastning!BE6:BE64)","v":1}]
[null,"Angreb på ting eller genstande",null,{"$f":"SUM(Indtastning!AT6:AT64)+SUM(Indtastning!AZ6:AZ64)+SUM(Indtastning!BF6:BF64)","v":1}]

{"sheet":"Risikoprofil","index":2,"n_rows":82,"n_cols":49,"rows_kept":82,"cut":false,"hidden":false,"merged":[]}
[]
["Rækkenavne","Sum af BVC dag","Sum af BVC aften","Sum af BVC nat","Sum af SOAS dag","Sum af SOAS aften","Sum af SOAS nat",{"$f":"Indtastning!$D$2 & \" - Risikoprofil\"","v":"Peter test Petersen i perioden fra d. 01-03-2021 til 28-04-2021 - Risikoprofil"}]
[9]
["Mandag",null,null,null,null,null,null,null,null,"I alt",null,"Dag","Aften","Nat",null,null,"I alt",null,"SOAS Dag","SOAS Aften","SOAS Nat",null,"Score","BVC","SOAS",null,null,"BVC Dag","BVC Aften","BVC Nat","SOAS Dag","SOAS Aften","SOAS Nat"]
["Tirsdag",4,1,null,3,null,null,null,"BVC 1",{"$f":"COUNTIF(B:D,\"=1\")","v":7},"BVC 1",{"$f":"COUNTIF(B:B,\"=1\")","v":2},{"$f":"COUNTIF(C:C,\"=1\")","v":3},{"$f":"COUNTIF(D:D,\"=1\")","v":2},null,"SOAS 1",{"$f":"COUNTIF(E:G,\"=1\")","v":4},"SOAS 1",{"$f":"COUNTIF(E:E,\"=1\")","v":2},{"$f":"COUNTIF(F:F,\"=1\")","v":2},{"$f":"COUNTIF(G:G,\"=1\")","v":0},null,1,{"$f":"J5","v":7},{"$f":"Q5","v":4},null,"BVC og SOAS 1",{"$f":"L5","v":2},3,2,{"$f":"S5","v":2},2,0]
["Onsdag",3,null,null,null,null,null,null,"BVC 2",{"$f":"COUNTIF(B:D,\"=2\")","v":5},"BVC 2",{"$f":"COUNTIF(B:B,\"=2\")","v":2},{"$f":"COUNTIF(C:C,\"=2\")","v":3},{"$f":"COUNTIF(D:D,\"=2\")","v":0},null,"SOAS 2",{"$f":"COUNTIF(E:G,\"=2\")","v":0},"SOAS 2",{"$f":"COUNTIF(E:E,\"=2\")","v":0},{"$f":"COUNTIF(F:F,\"=2\")","v":0},{"$f":"COUNTIF(G:G,\"=2\")","v":0},null,2,5,0,null,"BVC og SOAS 2",2,3,0,0,0,0]
["Torsdag",null,null,null,null,null,null,null,"BVC 3",{"$f":"COUNTIF(B:D,\"=3\")","v":6},"BVC 3",{"$f":"COUNTIF(B:B,\"=3\")","v":5},{"$f":"COUNTIF(C:C,\"=3\")","v":1},{"$f":"COUNTIF(D:D,\"=3\")","v":0},null,"SOAS 3",{"$f":"COUNTIF(E:G,\"=3\")","v":2},"SOAS 3",{"$f":"COUNTIF(E:E,\"=3\")","v":2},{"$f":"COUNTIF(F:F,\"=3\")","v":0},{"$f":"COUNTIF(G:G,\"=3\")","v":0},null,3,6,2,null,"BVC og SOAS 3",5,1,0,2,0,0]
["Fredag",null,2,null,null,null,null,null,"BVC 4",{"$f":"COUNTIF(B:D,\"=4\")","v":1},"BVC 4",{"$f":"COUNTIF(B:B,\"=4\")","v":1},{"$f":"COUNTIF(C:C,\"=4\")","v":0},{"$f":"COUNTIF(D:D,\"=4\")","v":0},null,"SOAS 4",{"$f":"COUNTIF(E:G,\"=4\")","v":0},"SOAS 4",{"$f":"COUNTIF(E:E,\"=4\")","v":0},{"$f":"COUNTIF(F:F,\"=4\")","v":0},{"$f":"COUNTIF(G:G,\"=4\")","v":0},null,4,1,0,null,"BVC og SOAS 4",1,0,0,0,0,0]
["Lørdag",null,null,null,null,null,null,null,"BVC 5",{"$f":"COUNTIF(B:D,\"=5\")","v":0},"BVC 5",{"$f":"COUNTIF(B:B,\"=5\")","v":0},{"$f":"COUNTIF(C:C,\"=5\")","v":0},{"$f":"COUNTIF(D:D,\"=5\")","v":0},null,"SOAS 5",{"$f":"COUNTIF(E:G,\"=5\")","v":0},"SOAS 5",{"$f":"COUNTIF(E:E,\"=5\")","v":0},{"$f":"COUNTIF(F:F,\"=5\")","v":0},{"$f":"COUNTIF(G:G,\"=5\")","v":0},null,5,0,0,null,"BVC og SOAS 5",0,0,0,0,0,0]
["Søndag",null,null,null,null,null,null,null,"BVC 6",{"$f":"COUNTIF(B:D,\"=6\")","v":0},"BVC 6",{"$f":"COUNTIF(B:B,\"=6\")","v":0},{"$f":"COUNTIF(C:C,\"=6\")","v":0},{"$f":"COUNTIF(D:D,\"=6\")","v":0},null,"SOAS 6",{"$f":"COUNTIF(E:G,\"=6\")","v":0},"SOAS 6",{"$f":"COUNTIF(E:E,\"=6\")","v":0},{"$f":"COUNTIF(F:F,\"=6\")","v":0},{"$f":"COUNTIF(G:G,\"=6\")","v":0},null,6,0,0,null,"BVC og SOAS 6",0,0,0,0,0,0]
[10]
["Mandag",null,2]
["Tirsdag",null,null,null,null,null,null,null,null,null,null,null,null,null,null,null,null,null,null,null,null,null,null,null,null,null,null,null,null,null,null,null,null,null,null,null,null,null,null,null,null,null,null,null,null,null,"Rækkenavne","Højeste BVC","Højeste SOAS"]
["Onsdag",null,null,null,null,null,null,null,null,null,null,null,null,null,null,null,null,null,null,null,null,null,null,null,null,null,null,null,null,null,null,null,null,null,null,null,null,null,null,null,null,null,null,null,null,null,"01-03-2021 - 07-03-2021",9,3]
["Torsdag",null,null,null,null,null,null,null,null,null,null,null,null,null,null,null,null,null,null,null,null,null,null,null,null,null,null,null,null,null,null,null,null,null,null,null,null,null,null,null,null,null,null,null,null,null,"Mandag",0,0]
["Fredag",2,null,null,null,null,null,null,null,null,null,null,null,null,null,null,null,null,null,null,null,null,null,null,null,null,null,null,null,null,null,null,null,null,null,null,null,null,null,null,null,null,null,null,null,null,"Tirsdag",4,3]
["Lørdag",null,null,null,null,null,null,null,null,null,null,null,null,null,null,null,null,null,null,null,null,null,null,null,null,null,null,null,null,null,null,null,null,null,null,null,null,null,null,null,null,null,null,null,null,null,"Onsdag",3,0]
["Søndag",null,null,null,null,null,null,null,null,null,null,null,null,null,null,null,null,null,null,null,null,null,null,null,null,null,null,null,null,null,null,null,null,null,null,null,null,null,null,null,null,null,null,null,null,null,"Torsdag",0,0]
[11,null,null,null,null,null,null,null,null,null,null,null,null,null,null,null,null,null,null,null,null,null,null,null,null,null,null,null,null,null,null,null,null,null,null,null,null,null,null,null,null,null,null,null,null,null,"Fredag",2,0]
["Mandag",null,null,null,null,null,null,null,null,null,null,null,null,null,null,null,null,null,null,null,null,null,null,null,null,null,null,null,null,null,null,null,null,null,null,null,null,null,null,null,null,null,null,null,null,null,"Lørdag",0,0]
["Tirsdag",null,null,null,null,null,null,null,null,null,null,null,null,null,null,null,null,null,null,null,null,null,null,null,null,null,null,null,null,null,null,null,null,null,null,null,null,null,null,null,null,null,null,null,null,null,"Søndag",0,0]
["Onsdag",null,null,1,null,null,null,null,null,null,null,null,null,null,null,null,null,null,null,null,null,null,null,null,null,null,null,null,null,null,null,null,null,null,null,null,null,null,null,null,null,null,null,null,null,null,"08-03-2021 - 14-03-2021",4,0]
["Torsdag",null,null,null,null,null,null,null,null,null,null,null,null,null,null,null,null,null,null,null,null,null,null,null,null,null,null,null,null,null,null,null,null,null,null,null,null,null,null,null,null,null,null,null,null,null,"Mandag",2,0]
["Fredag",3,null,null,1,null,null,null,null,null,null,null,null,null,null,null,null,null,null,null,null,null,null,null,null,null,null,null,null,null,null,null,null,null,null,null,null,null,null,null,null,null,null,null,null,null,"Tirsdag",0,0]
["Lørdag",3,null,null,1,null,null,null,null,null,null,null,null,null,null,null,null,null,null,null,null,null,null,null,null,null,null,null,null,null,null,null,null,null,null,null,null,null,null,null,null,null,null,null,null,null,"Onsdag",0,0]
["Søndag",null,null,null,null,null,null,null,null,null,null,null,null,null,null,null,null,null,null,null,null,null,null,null,null,null,null,null,null,null,null,null,null,null,null,null,null,null,null,null,null,null,null,null,null,null,"Torsdag",0,0]
[12,null,null,null,null,null,null,null,null,null,null,null,null,null,null,null,null,null,null,null,null,null,null,null,null,null,null,null,null,null,null,null,null,null,null,null,null,null,null,null,null,null,null,null,null,null,"Fredag",2,0]
["Mandag",null,null,null,null,null,null,null,null,null,null,null,null,null,null,null,null,null,null,null,null,null,null,null,null,null,null,null,null,null,null,null,null,null,null,null,null,null,null,null,null,null,null,null,null,null,"Lørdag",0,0]
["Tirsdag",null,1,null,null,null,null,null,null,null,null,null,null,null,null,null,null,null,null,null,null,null,null,null,null,null,null,null,null,null,null,null,null,null,null,null,null,null,null,null,null,null,null,null,null,null,"Søndag",0,0]
["Onsdag",null,null,null,null,null,null,null,null,null,null,null,null,null,null,null,null,null,null,null,null,null,null,null,null,null,null,null,null,null,null,null,null,null,null,null,null,null,null,null,null,null,null,null,null,null,"15-03-2021 - 21-03-2021",7,2]
["Torsdag",null,null,null,null,null,null,null,null,null,null,null,null,null,null,null,null,null,null,null,null,null,null,null,null,null,null,null,null,null,null,null,null,null,null,null,null,null,null,null,null,null,null,null,null,null,"Mandag",0,0]
["Fredag",null,null,1,null,null,null,null,null,null,null,null,null,null,null,null,null,null,null,null,null,null,null,null,null,null,null,null,null,null,null,null,null,null,null,null,null,null,null,null,null,null,null,null,null,null,"Tirsdag",0,0]
["Lørdag",null,null,null,null,null,null,null,null,null,null,null,null,null,null,null,null,null,null,null,null,null,null,null,null,null,null,null,null,null,null,null,null,null,null,null,null,null,null,null,null,null,null,null,null,null,"Onsdag",1,0]
["Søndag",null,null,null,null,null,null,null,null,null,null,null,null,null,null,null,null,null,null,null,null,null,null,null,null,null,null,null,null,null,null,null,null,null,null,null,null,null,null,null,null,null,null,null,null,null,"Torsdag",0,0]
[13,null,null,null,null,null,null,null,null,null,null,null,null,null,null,null,null,null,null,null,null,null,null,null,null,null,null,null,null,null,null,null,null,null,null,null,null,null,null,null,null,null,null,null,null,null,"Fredag",3,1]
["Mandag",1,2,null,null,1,null,null,null,null,null,null,null,null,null,null,null,null,null,null,null,null,null,null,null,null,null,null,null,null,null,null,null,null,null,null,null,null,null,null,null,null,null,null,null,null,"Lørdag",3,1]
["Tirsdag",null,null,null,null,null,null,null,null,null,null,null,null,null,null,null,null,null,null,null,null,null,null,null,null,null,null,null,null,null,null,null,null,null,null,null,null,null,null,null,null,null,null,null,null,null,"Søndag",0,0]
["Onsdag",null,null,null,null,null,null,null,null,null,null,null,null,null,null,null,null,null,null,null,null,null,null,null,null,null,null,null,null,null,null,null,null,null,null,null,null,null,null,null,null,null,null,null,null,null,"22-03-2021 - 28-03-2021",2,0]
["Torsdag",null,null,null,null,null,null,null,null,null,null,null,null,null,null,null,null,null,null,null,null,null,null,null,null,null,null,null,null,null,null,null,null,null,null,null,null,null,null,null,null,null,null,null,null,null,"Mandag",0,0]
["Fredag",null,null,null,null,null,null,null,null,null,null,null,null,null,null,null,null,null,null,null,null,null,null,null,null,null,null,null,null,null,null,null,null,null,null,null,null,null,null,null,null,null,null,null,null,null,"Tirsdag",1,0]
["Lørdag",3,null,null,3,null,null,null,null,null,null,null,null,null,null,null,null,null,null,null,null,null,null,null,null,null,null,null,null,null,null,null,null,null,null,null,null,null,null,null,null,null,null,null,null,null,"Onsdag",0,0]
["Søndag",2,null,null,null,null,null,null,null,null,null,null,null,null,null,null,null,null,null,null,null,null,null,null,null,null,null,null,null,null,null,null,null,null,null,null,null,null,null,null,null,null,null,null,null,null,"Torsdag",0,0]
[14,null,null,null,null,null,null,null,null,null,null,null,null,null,null,null,null,null,null,null,null,null,null,null,null,null,null,null,null,null,null,null,null,null,null,null,null,null,null,null,null,null,null,null,null,null,"Fredag",1,0]
["Mandag",null,null,null,null,null,null,null,null,null,null,null,null,null,null,null,null,null,null,null,null,null,null,null,null,null,null,null,null,null,null,null,null,null,null,null,null,null,null,null,null,null,null,null,null,null,"Lørdag",0,0]
["Tirsdag",null,null,null,null,null,null,null,null,null,null,null,null,null,null,null,null,null,null,null,null,null,null,null,null,null,null,null,null,null,null,null,null,null,null,null,null,null,null,null,null,null,null,null,null,null,"Søndag",0,0]
["Onsdag",null,null,null,null,null,null,null,null,null,null,null,null,null,null,null,null,null,null,null,null,null,null,null,null,null,null,null,null,null,null,null,null,null,null,null,null,null,null,null,null,null,null,null,null,null,"29-03-2021 - 04-04-2021",7,4]
["Torsdag",null,null,null,null,null,null,null,null,null,null,null,null,null,null,null,null,null,null,null,null,null,null,null,null,null,null,null,null,null,null,null,null,null,null,null,null,null,null,null,null,null,null,null,null,null,"Mandag",2,1]
["Fredag",null,null,null,null,null,null,null,null,null,null,null,null,null,null,null,null,null,null,null,null,null,null,null,null,null,null,null,null,null,null,null,null,null,null,null,null,null,null,null,null,null,null,null,null,null,"Tirsdag",0,0]
["Lørdag",null,null,null,null,null,null,null,null,null,null,null,null,null,null,null,null,null,null,null,null,null,null,null,null,null,null,null,null,null,null,null,null,null,null,null,null,null,null,null,null,null,null,null,null,null,"Onsdag",0,0]
["Søndag",null,null,null,null,null,null,null,null,null,null,null,null,null,null,null,null,null,null,null,null,null,null,null,null,null,null,null,null,null,null,null,null,null,null,null,null,null,null,null,null,null,null,null,null,null,"Torsdag",0,0]
[15,null,null,null,null,null,null,null,null,null,null,null,null,null,null,null,null,null,null,null,null,null,null,null,null,null,null,null,null,null,null,null,null,null,null,null,null,null,null,null,null,null,null,null,null,null,"Fredag",0,0]
["Mandag",null,null,null,null,null,null,null,null,null,null,null,null,null,null,null,null,null,null,null,null,null,null,null,null,null,null,null,null,null,null,null,null,null,null,null,null,null,null,null,null,null,null,null,null,null,"Lørdag",3,3]
["Tirsdag",null,null,null,null,null,null,null,null,null,null,null,null,null,null,null,null,null,null,null,null,null,null,null,null,null,null,null,null,null,null,null,null,null,null,null,null,null,null,null,null,null,null,null,null,null,"Søndag",2,0]
["Onsdag",null,null,null,null,null,null,null,null,null,null,null,null,null,null,null,null,null,null,null,null,null,null,null,null,null,null,null,null,null,null,null,null,null,null,null,null,null,null,null,null,null,null,null,null,null,"05-04-2021 - 11-04-2021",0,0]
["Torsdag",null,null,null,null,null,null,null,null,null,null,null,null,null,null,null,null,null,null,null,null,null,null,null,null,null,null,null,null,null,null,null,null,null,null,null,null,null,null,null,null,null,null,null,null,null,"Mandag",0,0]
["Fredag",null,1,null,null,null,null,null,null,null,null,null,null,null,null,null,null,null,null,null,null,null,null,null,null,null,null,null,null,null,null,null,null,null,null,null,null,null,null,null,null,null,null,null,null,null,"Tirsdag",0,0]
["Lørdag",null,null,null,null,null,null,null,null,null,null,null,null,null,null,null,null,null,null,null,null,null,null,null,null,null,null,null,null,null,null,null,null,null,null,null,null,null,null,null,null,null,null,null,null,null,"Onsdag",0,0]
["Søndag",null,null,null,null,null,null,null,null,null,null,null,null,null,null,null,null,null,null,null,null,null,null,null,null,null,null,null,null,null,null,null,null,null,null,null,null,null,null,null,null,null,null,null,null,null,"Torsdag",0,0]
[16,null,null,null,null,null,null,null,null,null,null,null,null,null,null,null,null,null,null,null,null,null,null,null,null,null,null,null,null,null,null,null,null,null,null,null,null,null,null,null,null,null,null,null,null,null,"Fredag",0,0]
["Mandag",null,null,null,null,null,null,null,null,null,null,null,null,null,null,null,null,null,null,null,null,null,null,null,null,null,null,null,null,null,null,null,null,null,null,null,null,null,null,null,null,null,null,null,null,null,"Lørdag",0,0]
["Tirsdag",null,null,null,null,null,null,null,null,null,null,null,null,null,null,null,null,null,null,null,null,null,null,null,null,null,null,null,null,null,null,null,null,null,null,null,null,null,null,null,null,null,null,null,null,null,"Søndag",0,0]
["Onsdag",null,null,null,null,null,null,null,null,null,null,null,null,null,null,null,null,null,null,null,null,null,null,null,null,null,null,null,null,null,null,null,null,null,null,null,null,null,null,null,null,null,null,null,null,null,"12-04-2021 - 18-04-2021",1,0]
["Torsdag",null,null,null,null,null,null,null,null,null,null,null,null,null,null,null,null,null,null,null,null,null,null,null,null,null,null,null,null,null,null,null,null,null,null,null,null,null,null,null,null,null,null,null,null,null,"Mandag",0,0]
["Fredag",null,null,null,null,null,null,null,null,null,null,null,null,null,null,null,null,null,null,null,null,null,null,null,null,null,null,null,null,null,null,null,null,null,null,null,null,null,null,null,null,null,null,null,null,null,"Tirsdag",0,0]
["Lørdag",1,3,null,null,1,null,null,null,null,null,null,null,null,null,null,null,null,null,null,null,null,null,null,null,null,null,null,null,null,null,null,null,null,null,null,null,null,null,null,null,null,null,null,null,null,"Onsdag",0,0]
["Søndag",null,null,null,null,null,null,null,null,null,null,null,null,null,null,null,null,null,null,null,null,null,null,null,null,null,null,null,null,null,null,null,null,null,null,null,null,null,null,null,null,null,null,null,null,null,"Torsdag",0,0]
[17,null,null,null,null,null,null,null,null,null,null,null,null,null,null,null,null,null,null,null,null,null,null,null,null,null,null,null,null,null,null,null,null,null,null,null,null,null,null,null,null,null,null,null,null,null,"Fredag",1,0]
["Mandag",null,null,null,null,null,null,null,null,null,null,null,null,null,null,null,null,null,null,null,null,null,null,null,null,null,null,null,null,null,null,null,null,null,null,null,null,null,null,null,null,null,null,null,null,null,"Lørdag",0,0]
["Tirsdag",null,null,null,null,null,null,null,null,null,null,null,null,null,null,null,null,null,null,null,null,null,null,null,null,null,null,null,null,null,null,null,null,null,null,null,null,null,null,null,null,null,null,null,null,null,"Søndag",0,0]
["Onsdag",3,null,null,null,null,null,null,null,null,null,null,null,null,null,null,null,null,null,null,null,null,null,null,null,null,null,null,null,null,null,null,null,null,null,null,null,null,null,null,null,null,null,null,null,null,"19-04-2021 - 25-04-2021",3,1]
[null,null,null,null,null,null,null,null,null,null,null,null,null,null,null,null,null,null,null,null,null,null,null,null,null,null,null,null,null,null,null,null,null,null,null,null,null,null,null,null,null,null,null,null,null,null,"Mandag",0,0]
[null,null,null,null,null,null,null,null,null,null,null,null,null,null,null,null,null,null,null,null,null,null,null,null,null,null,null,null,null,null,null,null,null,null,null,null,null,null,null,null,null,null,null,null,null,null,"Tirsdag",0,0]
[null,null,null,null,null,null,null,null,null,null,null,null,null,null,null,null,null,null,null,null,null,null,null,null,null,null,null,null,null,null,null,null,null,null,null,null,null,null,null,null,null,null,null,null,null,null,"Onsdag",0,0]
[null,null,null,null,null,null,null,null,null,null,null,null,null,null,null,null,null,null,null,null,null,null,null,null,null,null,null,null,null,null,null,null,null,null,null,null,null,null,null,null,null,null,null,null,null,null,"Torsdag",0,0]
[null,null,null,null,null,null,null,null,null,null,null,null,null,null,null,null,null,null,null,null,null,null,null,null,null,null,null,null,null,null,null,null,null,null,null,null,null,null,null,null,null,null,null,null,null,null,"Fredag",0,0]
[null,null,null,null,null,null,null,null,null,null,null,null,null,null,null,null,null,null,null,null,null,null,null,null,null,null,null,null,null,null,null,null,null,null,null,null,null,null,null,null,null,null,null,null,null,null,"Lørdag",3,1]
[null,null,null,null,null,null,null,null,null,null,null,null,null,null,null,null,null,null,null,null,null,null,null,null,null,null,null,null,null,null,null,null,null,null,null,null,null,null,null,null,null,null,null,null,null,null,"Søndag",0,0]
[null,null,null,null,null,null,null,null,null,null,null,null,null,null,null,null,null,null,null,null,null,null,null,null,null,null,null,null,null,null,null,null,null,null,null,null,null,null,null,null,null,null,null,null,null,null,"26-04-2021 - 29-04-2021",3,0]
[null,null,null,null,null,null,null,null,null,null,null,null,null,null,null,null,null,null,null,null,null,null,null,null,null,null,null,null,null,null,null,null,null,null,null,null,null,null,null,null,null,null,null,null,null,null,"Mandag",0,0]
[null,null,null,null,null,null,null,null,null,null,null,null,null,null,null,null,null,null,null,null,null,null,null,null,null,null,null,null,null,null,null,null,null,null,null,null,null,null,null,null,null,null,null,null,null,null,"Tirsdag",0,0]
[null,null,null,null,null,null,null,null,null,null,null,null,null,null,null,null,null,null,null,null,null,null,null,null,null,null,null,null,null,null,null,null,null,null,null,null,null,null,null,null,null,null,null,null,null,null,"Onsdag",3,0]
[null,null,null,null,null,null,null,null,null,null,null,null,null,null,null,null,null,null,null,null,null,null,null,null,null,null,null,null,null,null,null,null,null,null,null,null,null,null,null,null,null,null,null,null,null,null,"Hovedtotal",36,10]

{"sheet":"Belastende ugedage","index":3,"n_rows":69,"n_cols":15,"rows_kept":69,"cut":false,"hidden":false,"merged":[]}
["Rækkenavne","Sum af BVC dag","Sum af BVC aften","Sum af BVC nat"]
[9,null,null,null,null,null,null,{"$f":"Indtastning!$D$2 & \" - Belastende ugedage\"","v":"Peter test Petersen i perioden fra d. 01-03-2021 til 28-04-2021 - Belastende ugedage"}]
["Mandag"]
["Tirsdag",4,1,null,null,null,null,null,null,"Dag","Aften","Nat","Samlet"]
["Onsdag",3,null,null,null,null,null,null,"Mandag",{"$f":"SUMPRODUCT(-- (A:A = I5),-- (B:B > 0))","v":1},{"$f":"SUMPRODUCT(-- (A:A = I5),-- (C:C > 0))","v":2},{"$f":"SUMPRODUCT(-- (A:A = I5),-- (D:D > 0))","v":0},{"$f":"SUM(J5:L5)","v":3},"Mandag",{"$f":"M5","v":3}]
["Torsdag",null,null,null,null,null,null,null,"Tirsdag",1,2,0,{"$f":"SUM(J6:L6)","v":3},"Tirsdag",3]
["Fredag",null,2,null,null,null,null,null,"Onsdag",2,0,1,3,"Onsdag",3]
["Lørdag",null,null,null,null,null,null,null,"Torsdag",0,0,0,0,"Torsdag",0]
["Søndag",null,null,null,null,null,null,null,"Fredag",2,2,1,5,"Fredag",5]
[10,null,null,null,null,null,null,null,"Lørdag",3,1,0,4,"Lørdag",4]
["Mandag",null,2,null,null,null,null,null,"Søndag",1,0,0,1,"Søndag",1]
["Tirsdag"]
["Onsdag"]
["Torsdag"]
["Fredag",2]
["Lørdag"]
["Søndag"]
[11]
["Mandag"]
["Tirsdag"]
["Onsdag",null,null,1]
["Torsdag"]
["Fredag",3]
["Lørdag",3]
["Søndag"]
[12]
["Mandag"]
["Tirsdag",null,1]
["Onsdag"]
["Torsdag"]
["Fredag",null,null,1]
["Lørdag"]
["Søndag"]
[13]
["Mandag",1,2]
["Tirsdag"]
["Onsdag"]
["Torsdag"]
["Fredag"]
["Lørdag",3]
["Søndag",2]
[14]
["Mandag"]
["Tirsdag"]
["Onsdag"]
["Torsdag"]
["Fredag"]
["Lørdag"]
["Søndag"]
[15]
["Mandag"]
["Tirsdag"]
["Onsdag"]
["Torsdag"]
["Fredag",null,1]
["Lørdag"]
["Søndag"]
[16]
["Mandag"]
["Tirsdag"]
["Onsdag"]
["Torsdag"]
["Fredag"]
["Lørdag",1,3]
["Søndag"]
[17]
["Mandag"]
["Tirsdag"]
["Onsdag",3]

{"sheet":"Triggere","index":4,"n_rows":25,"n_cols":9,"rows_kept":25,"cut":false,"hidden":false,"merged":[]}
["  Husk  triggere skal ændres i alle 3 vagtlag",null,null,{"$f":"Indtastning!$D$2 & \" - Triggere\"","v":"Peter test Petersen i perioden fra d. 01-03-2021 til 28-04-2021 - Triggere"}]
[]
["Triggere dag","Antal",null,"Triggere aften","Antal",null,"Triggere nat","Antal","I alt"]
["Psykotisk",6,null,"Psykotisk",1,null,"Psykotisk",0,{"$f":"SUM(B4,E4,H4)","v":7}]
["Medicin ",1,null,"Medicin ",2,null,"Medicin ",0,{"$f":"SUM(B5,E5,H5)","v":3}]
["Behovsudsættelse",null,null,"Behovsudsættelse",null,null,"Behovsudsættelse",0,0]
["korrigering af adfærd",1,null,"korrigering af adfærd",1,null,"korrigering af adfærd",0,2]
["Rammerne",1,null,"Rammerne",2,null,"Rammerne",1,4]
["Behandling",null,null,"Behandling",null,null,"Behandling",0,0]
["Irritabilitet på personalet",null,null,"Irritabilitet på personalet",null,null,"Irritabilitet på personalet",0,0]
["Udgang",null,null,"Udgang",null,null,"Udgang",0,0]
["Medpatient",1,null,"Medpatient",1,null,"Medpatient",0,2]
["Økonomi",null,null,"Økonomi",null,null,"Økonomi",0,0]
["Udefrakommende faktorer",null,null,"Udefrakommende faktorer",null,null,"Udefrakommende faktorer",0,0]
["Personaleudløst",null,null,"Personaleudløst",null,null,"Personaleudløst",1,1]
["Patientens ejendele",null,null,"Patientens ejendele",null,null,"Patientens ejendele",0,0]
["Somatisk",null,null,"Somatisk",null,null,"Somatisk",0,0]
["Vækning/søvn",null,null,"Vækning/søvn",null,null,"Vækning/søvn",0,0]
["Indlæggelse/udskrivelse",null,null,"Indlæggelse/udskrivelse",null,null,"Indlæggelse/udskrivelse",0,0]
["Årsager kan ikke bestemmes",null,null,"Årsager kan ikke bestemmes",null,null,"Årsager kan ikke bestemmes",0,0]
[]
[]
[null,null,null,null," "]
[null,null,null,"Indtast fra dato","2021-01-03"]
[null,null,null,"Indtast til dato","28-04-2021"]

{"sheet":"Cannabis","index":5,"n_rows":70,"n_cols":8,"rows_kept":70,"cut":false,"hidden":false,"merged":[]}
[]
["Rækkenavne","BVC","SOAS-R","Positiv","Negativ","Ikke Aflagt",null,{"$f":"Indtastning!$D$2 & \" - Cannabis i forhold til BVC og SOAS-R\"","v":"Peter test Petersen i perioden fra d. 01-03-2021 til 28-04-2021 - Cannabis i forhold til BVC og SOAS-R"}]
["01-03-2021 - 07-03-2021"]
["Mandag",0,0,{"$error":"#N/A"},-2,-2]
["Tirsdag",4,3,{"$error":"#N/A"},-2,2.8]
["Onsdag",3,0,{"$error":"#N/A"},-2,-2]
["Torsdag",0,0,{"$error":"#N/A"},-2,-2]
["Fredag",2,0,{"$error":"#N/A"},-2,-2]
["Lørdag",0,0,{"$error":"#N/A"},-2,-2]
["Søndag",0,0,{"$error":"#N/A"},-2,-2]
["08-03-2021 - 14-03-2021"]
["Mandag",2,0,{"$error":"#N/A"},-2,-2]
["Tirsdag",0,0,14,-2,-2]
["Onsdag",0,0,{"$error":"#N/A"},-2,-2]
["Torsdag",0,0,{"$error":"#N/A"},-2,-2]
["Fredag",2,0,{"$error":"#N/A"},-2,-2]
["Lørdag",0,0,{"$error":"#N/A"},-2,-2]
["Søndag",0,0,{"$error":"#N/A"},-2,-2]
["15-03-2021 - 21-03-2021"]
["Mandag",0,0,{"$error":"#N/A"},-2,-2]
["Tirsdag",0,0,9,-2,-2]
["Onsdag",1,0,{"$error":"#N/A"},-2,-2]
["Torsdag",0,0,{"$error":"#N/A"},-2,-2]
["Fredag",3,1,{"$error":"#N/A"},-2,-2]
["Lørdag",3,1,{"$error":"#N/A"},-2,-2]
["Søndag",0,0,{"$error":"#N/A"},-2,-2]
["22-03-2021 - 28-03-2021"]
["Mandag",0,0,{"$error":"#N/A"},-2,-2]
["Tirsdag",1,0,0,1.2,-2]
["Onsdag",0,0,{"$error":"#N/A"},-2,-2]
["Torsdag",0,0,{"$error":"#N/A"},-2,-2]
["Fredag",1,0,{"$error":"#N/A"},-2,-2]
["Lørdag",0,0,{"$error":"#N/A"},-2,-2]
["Søndag",0,0,{"$error":"#N/A"},-2,-2]
["29-03-2021 - 04-04-2021"]
["Mandag",2,1,{"$error":"#N/A"},-2,-2]
["Tirsdag",0,0,{"$error":"#N/A"},-2,2.8]
["Onsdag",0,0,{"$error":"#N/A"},-2,-2]
["Torsdag",0,0,{"$error":"#N/A"},-2,-2]
["Fredag",0,0,{"$error":"#N/A"},-2,-2]
["Lørdag",3,3,{"$error":"#N/A"},-2,-2]
["Søndag",2,0,{"$error":"#N/A"},-2,-2]
["05-04-2021 - 11-04-2021"]
["Mandag",0,0,{"$error":"#N/A"},-2,-2]
["Tirsdag",0,0,0,1.2,-2]
["Onsdag",0,0,{"$error":"#N/A"},-2,-2]
["Torsdag",0,0,{"$error":"#N/A"},-2,-2]
["Fredag",0,0,{"$error":"#N/A"},-2,-2]
["Lørdag",0,0,{"$error":"#N/A"},-2,-2]
["Søndag",0,0,{"$error":"#N/A"},-2,-2]
["12-04-2021 - 18-04-2021"]
["Mandag",0,0,{"$error":"#N/A"},-2,-2]
["Tirsdag",0,0,6,-2,-2]
["Onsdag",0,0,{"$error":"#N/A"},-2,-2]
["Torsdag",0,0,{"$error":"#N/A"},-2,-2]
["Fredag",1,0,{"$error":"#N/A"},-2,-2]
["Lørdag",0,0,{"$error":"#N/A"},-2,-2]
["Søndag",0,0,{"$error":"#N/A"},-2,-2]
["19-04-2021 - 25-04-2021"]
["Mandag",0,0,{"$error":"#N/A"},-2,-2]
["Tirsdag",0,0,0,1.2,-2]
["Onsdag",0,0,{"$error":"#N/A"},-2,-2]
["Torsdag",0,0,{"$error":"#N/A"},-2,-2]
["Fredag",0,0,{"$error":"#N/A"},-2,-2]
["Lørdag",3,1,{"$error":"#N/A"},-2,-2]
["Søndag",0,0,{"$error":"#N/A"},-2,-2]
["26-04-2021 - 29-04-2021"]
["Mandag",0,0,{"$error":"#N/A"},-2,-2]
["Tirsdag",0,0,4,-2,-2]
["Onsdag",3,0,{"$error":"#N/A"},-2,-2]

{"sheet":"Amfetamin","index":6,"n_rows":70,"n_cols":14,"rows_kept":70,"cut":false,"hidden":false,"merged":[]}
["Rækkenavne","BVC","SOAS","Positiv","Ikke Afgivet","Negativ"]
["01-03-2021 - 07-03-2021",null,null,null,null,null,null,null,null,null,null,null,null,{"$f":"Indtastning!$D$2 & \" - Amfetamin i forhold til BVC og SOAS\"","v":"Peter test Petersen i perioden fra d. 01-03-2021 til 28-04-2021 - Amfetamin i forhold til BVC og SOAS"}]
["Mandag",0,0,-2,-2,-2]
["Tirsdag",4,3,-2,0,-2]
["Onsdag",3,0,-2,-2,-2]
["Torsdag",0,0,-2,-2,-2]
["Fredag",2,0,-2,-2,-2]
["Lørdag",0,0,-2,-2,-2]
["Søndag",0,0,-2,-2,-2]
["08-03-2021 - 14-03-2021"]
["Mandag",2,0,-2,-2,-2]
["Tirsdag",0,0,1,-2,-2]
["Onsdag",0,0,-2,-2,-2]
["Torsdag",0,0,-2,-2,-2]
["Fredag",2,0,-2,-2,-2]
["Lørdag",0,0,-2,-2,-2]
["Søndag",0,0,-2,-2,-2]
["15-03-2021 - 21-03-2021"]
["Mandag",0,0,-2,-2,-2]
["Tirsdag",0,0,-2,-2,-1]
["Onsdag",1,0,-2,-2,-2]
["Torsdag",0,0,-2,-2,-2]
["Fredag",3,1,-2,-2,-2]
["Lørdag",3,1,-2,-2,-2]
["Søndag",0,0,-2,-2,-2]
["22-03-2021 - 28-03-2021"]
["Mandag",0,0,-2,-2,-2]
["Tirsdag",1,0,1,-2,-2]
["Onsdag",0,0,-2,-2,-2]
["Torsdag",0,0,-2,-2,-2]
["Fredag",1,0,-2,-2,-2]
["Lørdag",0,0,-2,-2,-2]
["Søndag",0,0,-2,-2,-2]
["29-03-2021 - 04-04-2021"]
["Mandag",2,1,-2,-2,-2]
["Tirsdag",0,0,-2,0,-2]
["Onsdag",0,0,-2,-2,-2]
["Torsdag",0,0,-2,-2,-2]
["Fredag",0,0,-2,-2,-2]
["Lørdag",3,3,-2,-2,-2]
["Søndag",2,0,-2,-2,-2]
["05-04-2021 - 11-04-2021"]
["Mandag",0,0,-2,-2,-2]
["Tirsdag",0,0,-2,-2,-1]
["Onsdag",0,0,-2,-2,-2]
["Torsdag",0,0,-2,-2,-2]
["Fredag",0,0,-2,-2,-2]
["Lørdag",0,0,-2,-2,-2]
["Søndag",0,0,-2,-2,-2]
["12-04-2021 - 18-04-2021"]
["Mandag",0,0,-2,-2,-2]
["Tirsdag",0,0,-2,-2,-1]
["Onsdag",0,0,-2,-2,-2]
["Torsdag",0,0,-2,-2,-2]
["Fredag",1,0,-2,-2,-2]
["Lørdag",0,0,-2,-2,-2]
["Søndag",0,0,-2,-2,-2]
["19-04-2021 - 25-04-2021"]
["Mandag",0,0,-2,-2,-2]
["Tirsdag",0,0,1,-2,-2]
["Onsdag",0,0,-2,-2,-2]
["Torsdag",0,0,-2,-2,-2]
["Fredag",0,0,-2,-2,-2]
["Lørdag",3,1,-2,-2,-2]
["Søndag",0,0,-2,-2,-2]
["26-04-2021 - 29-04-2021"]
["Mandag",0,0,-2,-2,-2]
["Tirsdag",0,0,-2,-2,-1]
["Onsdag",3,0,-2,-2,-2]
["Hovedtotal",36,10,-109,-114,-114]

{"sheet":"Kokain","index":7,"n_rows":70,"n_cols":9,"rows_kept":70,"cut":false,"hidden":false,"merged":[]}
[]
["Rækkenavne","BVC","SOAS-R","Positiv","Negativ","Ikke taget",null,null,{"$f":"Indtastning!$D$2 & \" - Kokain i forhold til BVC og SOAS\"","v":"Peter test Petersen i perioden fra d. 01-03-2021 til 28-04-2021 - Kokain i forhold til BVC og SOAS"}]
["01-03-2021 - 07-03-2021"]
["Mandag",0,0,-2,-2,-2]
["Tirsdag",4,3,-2,-2,0]
["Onsdag",3,0,-2,-2,-2]
["Torsdag",0,0,-2,-2,-2]
["Fredag",2,0,-2,-2,-2]
["Lørdag",0,0,-2,-2,-2]
["Søndag",0,0,-2,-2,-2]
["08-03-2021 - 14-03-2021"]
["Mandag",2,0,-2,-2,-2]
["Tirsdag",0,0,-2,-1,-2]
["Onsdag",0,0,-2,-2,-2]
["Torsdag",0,0,-2,-2,-2]
["Fredag",2,0,-2,-2,-2]
["Lørdag",0,0,-2,-2,-2]
["Søndag",0,0,-2,-2,-2]
["15-03-2021 - 21-03-2021"]
["Mandag",0,0,-2,-2,-2]
["Tirsdag",0,0,1,-2,-2]
["Onsdag",1,0,-2,-2,-2]
["Torsdag",0,0,-2,-2,-2]
["Fredag",3,1,-2,-2,-2]
["Lørdag",3,1,-2,-2,-2]
["Søndag",0,0,-2,-2,-2]
["22-03-2021 - 28-03-2021"]
["Mandag",0,0,-2,-2,-2]
["Tirsdag",1,0,1,-2,-2]
["Onsdag",0,0,-2,-2,-2]
["Torsdag",0,0,-2,-2,-2]
["Fredag",1,0,-2,-2,-2]
["Lørdag",0,0,-2,-2,-2]
["Søndag",0,0,-2,-2,-2]
["29-03-2021 - 04-04-2021"]
["Mandag",2,1,-2,-2,-2]
["Tirsdag",0,0,-2,-2,0]
["Onsdag",0,0,-2,-2,-2]
["Torsdag",0,0,-2,-2,-2]
["Fredag",0,0,-2,-2,-2]
["Lørdag",3,3,-2,-2,-2]
["Søndag",2,0,-2,-2,-2]
["05-04-2021 - 11-04-2021"]
["Mandag",0,0,-2,-2,-2]
["Tirsdag",0,0,1,-2,-2]
["Onsdag",0,0,-2,-2,-2]
["Torsdag",0,0,-2,-2,-2]
["Fredag",0,0,-2,-2,-2]
["Lørdag",0,0,-2,-2,-2]
["Søndag",0,0,-2,-2,-2]
["12-04-2021 - 18-04-2021"]
["Mandag",0,0,-2,-2,-2]
["Tirsdag",0,0,-2,-1,-2]
["Onsdag",0,0,-2,-2,-2]
["Torsdag",0,0,-2,-2,-2]
["Fredag",1,0,-2,-2,-2]
["Lørdag",0,0,-2,-2,-2]
["Søndag",0,0,-2,-2,-2]
["19-04-2021 - 25-04-2021"]
["Mandag",0,0,-2,-2,-2]
["Tirsdag",0,0,-2,-1,-2]
["Onsdag",0,0,-2,-2,-2]
["Torsdag",0,0,-2,-2,-2]
["Fredag",0,0,-2,-2,-2]
["Lørdag",3,1,-2,-2,-2]
["Søndag",0,0,-2,-2,-2]
["26-04-2021 - 29-04-2021"]
["Mandag",0,0,-2,-2,-2]
["Tirsdag",0,0,-2,-1,-2]
["Onsdag",3,0,-2,-2,-2]

{"sheet":"X1","index":8,"n_rows":107,"n_cols":11,"rows_kept":107,"cut":false,"hidden":false,"merged":[]}
[]
[null,null,null,null,null,null,null,null,null,{"$f":"Indtastning!$D$2 & \" - X1 i forhold til BVC og SOAS\"","v":"Peter test Petersen i perioden fra d. 01-03-2021 til 28-04-2021 - X1 i forhold til BVC og SOAS"}]
[]
[]
[]
[]
[]
[]
[]
[]
[]
[]
[]
[]
[]
[]
[]
[]
[]
[]
[]
[]
[]
[]
[]
[]
[]
[]
[]
[]
[]
[]
[]
[]
[]
[]
[]
[null,null,null,null,null,"Rækkenavne","BVC","SOAS","Positiv","Negativ","Ikke Afgivet"]
[null,null,null,null,null,"01-03-2021 - 07-03-2021"]
[null,null,null,null,null,"Mandag",0,0,-2,-2,-2]
[null,null,null,null,null,"Tirsdag",4,3,-2,-2,0]
[null,null,null,null,null,"Onsdag",3,0,-2,-2,-2]
[null,null,null,null,null,"Torsdag",0,0,-2,-2,-2]
[null,null,null,null,null,"Fredag",2,0,-2,-2,-2]
[null,null,null,null,null,"Lørdag",0,0,-2,-2,-2]
[null,null,null,null,null,"Søndag",0,0,-2,-2,-2]
[null,null,null,null,null,"08-03-2021 - 14-03-2021"]
[null,null,null,null,null,"Mandag",2,0,-2,-2,-2]
[null,null,null,null,null,"Tirsdag",0,0,-2,-2,-2]
[null,null,null,null,null,"Onsdag",0,0,-2,-2,-2]
[null,null,null,null,null,"Torsdag",0,0,-2,-2,-2]
[null,null,null,null,null,"Fredag",2,0,-2,-2,-2]
[null,null,null,null,null,"Lørdag",0,0,-2,-2,-2]
[null,null,null,null,null,"Søndag",0,0,-2,-2,-2]
[null,null,null,null,null,"15-03-2021 - 21-03-2021"]
[null,null,null,null,null,"Mandag",0,0,-2,-2,-2]
[null,null,null,null,null,"Tirsdag",0,0,-2,-2,-2]
[null,null,null,null,null,"Onsdag",1,0,-2,-2,-2]
[null,null,null,null,null,"Torsdag",0,0,-2,-2,-2]
[null,null,null,null,null,"Fredag",3,1,-2,-2,-2]
[null,null,null,null,null,"Lørdag",3,1,-2,-2,-2]
[null,null,null,null,null,"Søndag",0,0,-2,-2,-2]
[null,null,null,null,null,"22-03-2021 - 28-03-2021"]
[null,null,null,null,null,"Mandag",0,0,-2,-2,-2]
[null,null,null,null,null,"Tirsdag",1,0,-2,-2,-2]
[null,null,null,null,null,"Onsdag",0,0,-2,-2,-2]
[null,null,null,null,null,"Torsdag",0,0,-2,-2,-2]
[null,null,null,null,null,"Fredag",1,0,-2,-2,-2]
[null,null,null,null,null,"Lørdag",0,0,-2,-2,-2]
[null,null,null,null,null,"Søndag",0,0,-2,-2,-2]
[null,null,null,null,null,"29-03-2021 - 04-04-2021"]
[null,null,null,null,null,"Mandag",2,1,-2,-2,-2]
[null,null,null,null,null,"Tirsdag",0,0,-2,-2,0]
[null,null,null,null,null,"Onsdag",0,0,-2,-2,-2]
[null,null,null,null,null,"Torsdag",0,0,-2,-2,-2]
[null,null,null,null,null,"Fredag",0,0,-2,-2,-2]
[null,null,null,null,null,"Lørdag",3,3,-2,-2,-2]
[null,null,null,null,null,"Søndag",2,0,-2,-2,-2]
[null,null,null,null,null,"05-04-2021 - 11-04-2021"]
[null,null,null,null,null,"Mandag",0,0,-2,-2,-2]
[null,null,null,null,null,"Tirsdag",0,0,-2,-2,-2]
[null,null,null,null,null,"Onsdag",0,0,-2,-2,-2]
[null,null,null,null,null,"Torsdag",0,0,-2,-2,-2]
[null,null,null,null,null,"Fredag",0,0,-2,-2,-2]
[null,null,null,null,null,"Lørdag",0,0,-2,-2,-2]
[null,null,null,null,null,"Søndag",0,0,-2,-2,-2]
[null,null,null,null,null,"12-04-2021 - 18-04-2021"]
[null,null,null,null,null,"Mandag",0,0,-2,-2,-2]
[null,null,null,null,null,"Tirsdag",0,0,-2,-2,-2]
[null,null,null,null,null,"Onsdag",0,0,-2,-2,-2]
[null,null,null,null,null,"Torsdag",0,0,-2,-2,-2]
[null,null,null,null,null,"Fredag",1,0,-2,-2,-2]
[null,null,null,null,null,"Lørdag",0,0,-2,-2,-2]
[null,null,null,null,null,"Søndag",0,0,-2,-2,-2]
[null,null,null,null,null,"19-04-2021 - 25-04-2021"]
[null,null,null,null,null,"Mandag",0,0,-2,-2,-2]
[null,null,null,null,null,"Tirsdag",0,0,-2,-2,-2]
[null,null,null,null,null,"Onsdag",0,0,-2,-2,-2]
[null,null,null,null,null,"Torsdag",0,0,-2,-2,-2]
[null,null,null,null,null,"Fredag",0,0,-2,-2,-2]
[null,null,null,null,null,"Lørdag",3,1,-2,-2,-2]
[null,null,null,null,null,"Søndag",0,0,-2,-2,-2]
[null,null,null,null,null,"26-04-2021 - 29-04-2021"]
[null,null,null,null,null,"Mandag",0,0,-2,-2,-2]
[null,null,null,null,null,"Tirsdag",0,0,-2,-2,-2]
[null,null,null,null,null,"Onsdag",3,0,-2,-2,-2]
[null,null,null,null,null,"Hovedtotal",36,10,-118,-118,-114]

{"sheet":"X2","index":9,"n_rows":77,"n_cols":11,"rows_kept":77,"cut":false,"hidden":false,"merged":[]}
[]
[null,null,null,null,null,null,null,null,null,{"$f":"PatientNavn & \" - X2 i forhold til BVC og SOAS\"","v":"Peter test Petersen i perioden fra d. 01-03-2021 til 28-04-2021 - X2 i forhold til BVC og SOAS"}]
[]
[]
[]
[]
[]
[null,null,null,null,null,"Rækkenavne","BVC","SOAS","Positiv","Negativ","Ikke Afgivet"]
[null,null,null,null,null,"01-03-2021 - 07-03-2021"]
[null,null,null,null,null,"Mandag",0,0,-2,-2,-2]
[null,null,null,null,null,"Tirsdag",4,3,-2,-2,0]
[null,null,null,null,null,"Onsdag",3,0,-2,-2,-2]
[null,null,null,null,null,"Torsdag",0,0,-2,-2,-2]
[null,null,null,null,null,"Fredag",2,0,-2,-2,-2]
[null,null,null,null,null,"Lørdag",0,0,-2,-2,-2]
[null,null,null,null,null,"Søndag",0,0,-2,-2,-2]
[null,null,null,null,null,"08-03-2021 - 14-03-2021"]
[null,null,null,null,null,"Mandag",2,0,-2,-2,-2]
[null,null,null,null,null,"Tirsdag",0,0,1,-2,-2]
[null,null,null,null,null,"Onsdag",0,0,-2,-2,-2]
[null,null,null,null,null,"Torsdag",0,0,-2,-2,-2]
[null,null,null,null,null,"Fredag",2,0,-2,-2,-2]
[null,null,null,null,null,"Lørdag",0,0,-2,-2,-2]
[null,null,null,null,null,"Søndag",0,0,-2,-2,-2]
[null,null,null,null,null,"15-03-2021 - 21-03-2021"]
[null,null,null,null,null,"Mandag",0,0,-2,-2,-2]
[null,null,null,null,null,"Tirsdag",0,0,1,-2,-2]
[null,null,null,null,null,"Onsdag",1,0,-2,-2,-2]
[null,null,null,null,null,"Torsdag",0,0,-2,-2,-2]
[null,null,null,null,null,"Fredag",3,1,-2,-2,-2]
[null,null,null,null,null,"Lørdag",3,1,-2,-2,-2]
[null,null,null,null,null,"Søndag",0,0,-2,-2,-2]
[null,null,null,null,null,"22-03-2021 - 28-03-2021"]
[null,null,null,null,null,"Mandag",0,0,-2,-2,-2]
[null,null,null,null,null,"Tirsdag",1,0,-2,-1,-2]
[null,null,null,null,null,"Onsdag",0,0,-2,-2,-2]
[null,null,null,null,null,"Torsdag",0,0,-2,-2,-2]
[null,null,null,null,null,"Fredag",1,0,-2,-2,-2]
[null,null,null,null,null,"Lørdag",0,0,-2,-2,-2]
[null,null,null,null,null,"Søndag",0,0,-2,-2,-2]
[null,null,null,null,null,"29-03-2021 - 04-04-2021"]
[null,null,null,null,null,"Mandag",2,1,-2,-2,-2]
[null,null,null,null,null,"Tirsdag",0,0,-2,-2,0]
[null,null,null,null,null,"Onsdag",0,0,-2,-2,-2]
[null,null,null,null,null,"Torsdag",0,0,-2,-2,-2]
[null,null,null,null,null,"Fredag",0,0,-2,-2,-2]
[null,null,null,null,null,"Lørdag",3,3,-2,-2,-2]
[null,null,null,null,null,"Søndag",2,0,-2,-2,-2]
[null,null,null,null,null,"05-04-2021 - 11-04-2021"]
[null,null,null,null,null,"Mandag",0,0,-2,-2,-2]
[null,null,null,null,null,"Tirsdag",0,0,-2,-1,-2]
[null,null,null,null,null,"Onsdag",0,0,-2,-2,-2]
[null,null,null,null,null,"Torsdag",0,0,-2,-2,-2]
[null,null,null,null,null,"Fredag",0,0,-2,-2,-2]
[null,null,null,null,null,"Lørdag",0,0,-2,-2,-2]
[null,null,null,null,null,"Søndag",0,0,-2,-2,-2]
[null,null,null,null,null,"12-04-2021 - 18-04-2021"]
[null,null,null,null,null,"Mandag",0,0,-2,-2,-2]
[null,null,null,null,null,"Tirsdag",0,0,1,-2,-2]
[null,null,null,null,null,"Onsdag",0,0,-2,-2,-2]
[null,null,null,null,null,"Torsdag",0,0,-2,-2,-2]
[null,null,null,null,null,"Fredag",1,0,-2,-2,-2]
[null,null,null,null,null,"Lørdag",0,0,-2,-2,-2]
[null,null,null,null,null,"Søndag",0,0,-2,-2,-2]
[null,null,null,null,null,"19-04-2021 - 25-04-2021"]
[null,null,null,null,null,"Mandag",0,0,-2,-2,-2]
[null,null,null,null,null,"Tirsdag",0,0,-2,-1,-2]
[null,null,null,null,null,"Onsdag",0,0,-2,-2,-2]
[null,null,null,null,null,"Torsdag",0,0,-2,-2,-2]
[null,null,null,null,null,"Fredag",0,0,-2,-2,-2]
[null,null,null,null,null,"Lørdag",3,1,-2,-2,-2]
[null,null,null,null,null,"Søndag",0,0,-2,-2,-2]
[null,null,null,null,null,"26-04-2021 - 29-04-2021"]
[null,null,null,null,null,"Mandag",0,0,-2,-2,-2]
[null,null,null,null,null,"Tirsdag",0,0,1,-2,-2]
[null,null,null,null,null,"Onsdag",3,0,-2,-2,-2]
[null,null,null,null,null,"Hovedtotal",36,10,-106,-115,-114]

{"sheet":"Samlet Misbrug","index":10,"n_rows":70,"n_cols":27,"rows_kept":70,"cut":false,"hidden":false,"merged":[]}
["Rækkenavne","Sum af BVC Højeste","Sum af SOAS Højeste","Sum af AmfPos","Sum af AmfNeg","Sum af AmfIkke","Sum af KokPos","Sum af KokNeg","Sum af KokIkke","Sum af X1Pos","Sum af X1Neg","Sum af X1Ikke","Sum af X2Pos","Sum af X2Neg","Sum af X2Ikke"]
["01-03-2021 - 07-03-2021",null,null,null,null,null,null,null,null,null,null,null,null,null,null,null,null,null,null,null,null,null,null,null,null,null,{"$f":"[0]!PatientNavn & \" - Samlet misbrug i forhold til BVC og SOAS\"","v":"Peter test Petersen i perioden fra d. 01-03-2021 til 28-04-2021 - Samlet misbrug i forhold til BVC og SOAS"}]
["Mandag",0,0,-2,-2,-2,-2,-2,-2,-2,-2,-2,-2,-2,-2]
["Tirsdag",4,3,-2,-2,0,-2,-2,0,-2,-2,0,-2,-2,0]
["Onsdag",3,0,-2,-2,-2,-2,-2,-2,-2,-2,-2,-2,-2,-2]
["Torsdag",0,0,-2,-2,-2,-2,-2,-2,-2,-2,-2,-2,-2,-2]
["Fredag",2,0,-2,-2,-2,-2,-2,-2,-2,-2,-2,-2,-2,-2]
["Lørdag",0,0,-2,-2,-2,-2,-2,-2,-2,-2,-2,-2,-2,-2]
["Søndag",0,0,-2,-2,-2,-2,-2,-2,-2,-2,-2,-2,-2,-2]
["08-03-2021 - 14-03-2021"]
["Mandag",2,0,-2,-2,-2,-2,-2,-2,-2,-2,-2,-2,-2,-2]
["Tirsdag",0,0,1,-2,-2,-2,-1,-2,-2,-2,-2,1,-2,-2]
["Onsdag",0,0,-2,-2,-2,-2,-2,-2,-2,-2,-2,-2,-2,-2]
["Torsdag",0,0,-2,-2,-2,-2,-2,-2,-2,-2,-2,-2,-2,-2]
["Fredag",2,0,-2,-2,-2,-2,-2,-2,-2,-2,-2,-2,-2,-2]
["Lørdag",0,0,-2,-2,-2,-2,-2,-2,-2,-2,-2,-2,-2,-2]
["Søndag",0,0,-2,-2,-2,-2,-2,-2,-2,-2,-2,-2,-2,-2]
["15-03-2021 - 21-03-2021"]
["Mandag",0,0,-2,-2,-2,-2,-2,-2,-2,-2,-2,-2,-2,-2]
["Tirsdag",0,0,-2,-1,-2,1,-2,-2,-2,-2,-2,1,-2,-2]
["Onsdag",1,0,-2,-2,-2,-2,-2,-2,-2,-2,-2,-2,-2,-2]
["Torsdag",0,0,-2,-2,-2,-2,-2,-2,-2,-2,-2,-2,-2,-2]
["Fredag",3,1,-2,-2,-2,-2,-2,-2,-2,-2,-2,-2,-2,-2]
["Lørdag",3,1,-2,-2,-2,-2,-2,-2,-2,-2,-2,-2,-2,-2]
["Søndag",0,0,-2,-2,-2,-2,-2,-2,-2,-2,-2,-2,-2,-2]
["22-03-2021 - 28-03-2021"]
["Mandag",0,0,-2,-2,-2,-2,-2,-2,-2,-2,-2,-2,-2,-2]
["Tirsdag",1,0,1,-2,-2,1,-2,-2,-2,-2,-2,-2,-1,-2]
["Onsdag",0,0,-2,-2,-2,-2,-2,-2,-2,-2,-2,-2,-2,-2]
["Torsdag",0,0,-2,-2,-2,-2,-2,-2,-2,-2,-2,-2,-2,-2]
["Fredag",1,0,-2,-2,-2,-2,-2,-2,-2,-2,-2,-2,-2,-2]
["Lørdag",0,0,-2,-2,-2,-2,-2,-2,-2,-2,-2,-2,-2,-2]
["Søndag",0,0,-2,-2,-2,-2,-2,-2,-2,-2,-2,-2,-2,-2]
["29-03-2021 - 04-04-2021"]
["Mandag",2,1,-2,-2,-2,-2,-2,-2,-2,-2,-2,-2,-2,-2]
["Tirsdag",0,0,-2,-2,0,-2,-2,0,-2,-2,0,-2,-2,0]
["Onsdag",0,0,-2,-2,-2,-2,-2,-2,-2,-2,-2,-2,-2,-2]
["Torsdag",0,0,-2,-2,-2,-2,-2,-2,-2,-2,-2,-2,-2,-2]
["Fredag",0,0,-2,-2,-2,-2,-2,-2,-2,-2,-2,-2,-2,-2]
["Lørdag",3,3,-2,-2,-2,-2,-2,-2,-2,-2,-2,-2,-2,-2]
["Søndag",2,0,-2,-2,-2,-2,-2,-2,-2,-2,-2,-2,-2,-2]
["05-04-2021 - 11-04-2021"]
["Mandag",0,0,-2,-2,-2,-2,-2,-2,-2,-2,-2,-2,-2,-2]
["Tirsdag",0,0,-2,-1,-2,1,-2,-2,-2,-2,-2,-2,-1,-2]
["Onsdag",0,0,-2,-2,-2,-2,-2,-2,-2,-2,-2,-2,-2,-2]
["Torsdag",0,0,-2,-2,-2,-2,-2,-2,-2,-2,-2,-2,-2,-2]
["Fredag",0,0,-2,-2,-2,-2,-2,-2,-2,-2,-2,-2,-2,-2]
["Lørdag",0,0,-2,-2,-2,-2,-2,-2,-2,-2,-2,-2,-2,-2]
["Søndag",0,0,-2,-2,-2,-2,-2,-2,-2,-2,-2,-2,-2,-2]
["12-04-2021 - 18-04-2021"]
["Mandag",0,0,-2,-2,-2,-2,-2,-2,-2,-2,-2,-2,-2,-2]
["Tirsdag",0,0,-2,-1,-2,-2,-1,-2,-2,-2,-2,1,-2,-2]
["Onsdag",0,0,-2,-2,-2,-2,-2,-2,-2,-2,-2,-2,-2,-2]
["Torsdag",0,0,-2,-2,-2,-2,-2,-2,-2,-2,-2,-2,-2,-2]
["Fredag",1,0,-2,-2,-2,-2,-2,-2,-2,-2,-2,-2,-2,-2]
["Lørdag",0,0,-2,-2,-2,-2,-2,-2,-2,-2,-2,-2,-2,-2]
["Søndag",0,0,-2,-2,-2,-2,-2,-2,-2,-2,-2,-2,-2,-2]
["19-04-2021 - 25-04-2021"]
["Mandag",0,0,-2,-2,-2,-2,-2,-2,-2,-2,-2,-2,-2,-2]
["Tirsdag",0,0,1,-2,-2,-2,-1,-2,-2,-2,-2,-2,-1,-2]
["Onsdag",0,0,-2,-2,-2,-2,-2,-2,-2,-2,-2,-2,-2,-2]
["Torsdag",0,0,-2,-2,-2,-2,-2,-2,-2,-2,-2,-2,-2,-2]
["Fredag",0,0,-2,-2,-2,-2,-2,-2,-2,-2,-2,-2,-2,-2]
["Lørdag",3,1,-2,-2,-2,-2,-2,-2,-2,-2,-2,-2,-2,-2]
["Søndag",0,0,-2,-2,-2,-2,-2,-2,-2,-2,-2,-2,-2,-2]
["26-04-2021 - 29-04-2021"]
["Mandag",0,0,-2,-2,-2,-2,-2,-2,-2,-2,-2,-2,-2,-2]
["Tirsdag",0,0,-2,-1,-2,-2,-1,-2,-2,-2,-2,1,-2,-2]
["Onsdag",3,0,-2,-2,-2,-2,-2,-2,-2,-2,-2,-2,-2,-2]
["Hovedtotal",36,10,-109,-114,-114,-109,-114,-114,-118,-118,-114,-106,-115,-114]

{"sheet":"PopUp variabler","index":11,"n_rows":19,"n_cols":5,"rows_kept":19,"cut":false,"hidden":false,"merged":[[1,3,1,4]]}
["Pop Up liste med BVC-udløsende temaer (triggere)","SOAS Niveauer"]
["Psykotisk","6  Drab",null,"Prøvetagning"]
["Medicin ","5  Overfald med farlig genstand / Forsøg på kvælning",null,"Positiv",1]
["Behovsudsættelse","4  Trusler med farlig genstand / Fysisk vold med forhåndenværende midler*",null,"Negativ",-1]
["Korrigering af adfærd","3  Korporlig truende attitude / Personrettede verbale trusler** / Selvmordsforsøg",null,"Ikke Aflagt",-2]
["Rammerne","2  Aggression rettet mod inventar / Selvskade",null,"Ikke ordineret",0]
["Behandlingen","1  Nedgørende skældsord / Verbale trusler - generaliserede eller personligt rettet  "]
["Irritabilitet på personalet","  mod nogen ikke tilstede"]
["Udgang"," *  Slag, Spark, Benspænd, Skaller, Bid, Spyt, Kras eller udfald med kasteskyts af mindre alvorlig karakter"]
["Medpatient","** Trusler kan udtrykkes gennem grove devaluerende ytringer, eller uden ord; f.eks. ved knyttede "]
["Økonomi","      næver, bevægelse af en finger hen over halsen eller gennem tegninger."]
["Udefrakommende faktorer","Husk at plotte tallet ind i rette vagtlag"]
["Personaleudløst"]
["Patientens ejendele"]
["Somatisk"]
["Vækning/søvn"]
["Indlæggelse/udskrivelse"]
["Årsager kan ikke bestemmes"]
[" Listen kan tilpasses ved indledende opsætning af ny patient/periode. Vagtlag ændres her…"]

{"sheet":"Manualer","index":12,"n_rows":2,"n_cols":5,"rows_kept":2,"cut":false,"hidden":false,"merged":[]}
["BVC","SOAS","Positiv","Negativ","Ikke Afgivet"]
[36,10,{"$error":"#N/A"},-108.39999999999999,-108.4]

{"sheet":"CC","index":13,"n_rows":0,"n_cols":0,"rows_kept":0,"cut":false,"hidden":false,"merged":[]}